[Event "*** Titled Tuesday 3|2 Blitz"]
[Site "Chess.com"]
[Date "2017.03.07"]
[Round "2"]
[White "rasmussvane"]
[Black "Jospem"]
[Result "1-0"]
[WhiteElo "2495"]
[BlackElo "2582"]
[TimeControl "180+2"]
[EndTime "13:20:58 PST"]
[Termination "rasmussvane won by resignation"]

1. Nf3 {[%clk 0:03:02]} 1... Nf6 {[%clk 0:03:00.4]} 2. c4 {[%clk 0:03:02.8]}
2... g6 {[%clk 0:02:59.6]} 3. Nc3 {[%clk 0:03:03.7]} 3... d6 {[%clk 0:02:51.8]}
4. e4 {[%clk 0:03:04.8]} 4... Bg7 {[%clk 0:02:52.4]} 5. d4 {[%clk 0:03:06.1]}
5... Bg4 {[%clk 0:02:53.5]} 6. Be2 {[%clk 0:03:07.1]} 6... O-O {[%clk
0:02:54.6]} 7. Be3 {[%clk 0:03:08.2]} 7... Bxf3 {[%clk 0:02:44.8]} 8. Bxf3
{[%clk 0:03:09]} 8... Nc6 {[%clk 0:02:46.5]} 9. O-O {[%clk 0:03:02.3]} 9... e5
{[%clk 0:02:46.1]} 10. d5 {[%clk 0:03:03.6]} 10... Ne7 {[%clk 0:02:27.7]} 11. c5
{[%clk 0:03:04.6]} 11... a6 {[%clk 0:02:21.4]} 12. Qb3 {[%clk 0:03:04.7]} 12...
Qb8 {[%clk 0:02:00.1]} 13. Rac1 {[%clk 0:03:04.4]} 13... Nd7 {[%clk 0:01:55.8]}
14. Na4 {[%clk 0:03:02.6]} 14... f5 {[%clk 0:01:37.2]} 15. cxd6 {[%clk
0:02:30.1]} 15... cxd6 {[%clk 0:01:38.3]} 16. Nb6 {[%clk 0:02:31.3]} 16... Qd8
{[%clk 0:01:33.8]} 17. Nxa8 {[%clk 0:02:30.5]} 17... Qxa8 {[%clk 0:01:32.9]} 18.
Rc7 {[%clk 0:02:31.2]} 18... Rd8 {[%clk 0:01:22.6]} 19. Qxb7 {[%clk 0:02:28.6]}
19... Qxb7 {[%clk 0:01:23.8]} 20. Rxb7 {[%clk 0:02:29.8]} 20... f4 {[%clk
0:01:20.8]} 21. Bb6 {[%clk 0:02:23.7]} 21... Nxb6 {[%clk 0:01:22]} 22. Rxb6
{[%clk 0:02:24.9]} 22... a5 {[%clk 0:01:23]} 23. Rc1 {[%clk 0:02:23.7]} 23...
Bf8 {[%clk 0:01:23.8]} 24. Bg4 {[%clk 0:02:23.3]} 24... Ra8 {[%clk 0:01:21.9]}
25. Be6+ {[%clk 0:02:15.8]} 25... Kh8 {[%clk 0:01:22.5]} 26. Rxd6 {[%clk
0:02:16]} 26... Rb8 {[%clk 0:01:20.8]} 27. b3 {[%clk 0:02:07.7]} 27... a4 {[%clk
0:01:21.7]} 28. bxa4 {[%clk 0:02:08.9]} 28... Nf5 {[%clk 0:01:23.2]} 29. Rdc6
{[%clk 0:01:58.3]} 29... Nd4 {[%clk 0:01:23.4]} 30. Rc8 {[%clk 0:01:56.1]} 30...
Rb2 {[%clk 0:01:06.2]} 31. Rxf8+ {[%clk 0:01:51.4]} 31... Kg7 {[%clk 0:01:07.8]}
32. Rf7+ {[%clk 0:01:44.1]} 32... Kh6 {[%clk 0:01:08.3]} 33. Bg4 {[%clk
0:01:31.9]} 33... Kg5 {[%clk 0:01:06]} 34. Bf3 {[%clk 0:01:31]} 34... Rxa2
{[%clk 0:01:01.8]} 35. h4+ {[%clk 0:01:26.7]} 35... Kxh4 {[%clk 0:01:02.6]} 36.
Rxh7+ {[%clk 0:01:27.6]} 36... Kg5 {[%clk 0:01:04.3]} 37. d6 {[%clk 0:01:27]}
37... Rxa4 {[%clk 0:00:57.2]} 38. d7 {[%clk 0:01:27.7]} 38... Ne6 {[%clk
0:00:48.3]} 39. Re7 {[%clk 0:01:27.2]} 39... Nd8 {[%clk 0:00:42.9]} 40. Re8
{[%clk 0:01:26.8]} 40... Ra8 {[%clk 0:00:43]} 41. Rc8 {[%clk 0:01:23.3]} 41...
Ra1+ {[%clk 0:00:44.6]} 42. Kh2 {[%clk 0:01:24.3]} 42... Nf7 {[%clk 0:00:46.1]}
43. d8=Q+ {[%clk 0:01:25.3]} 43... Nxd8 {[%clk 0:00:47.1]} 44. Rcxd8 {[%clk
0:01:26.2]} 44... Ra7 {[%clk 0:00:48.7]} 45. Rxe5+ {[%clk 0:01:24.8]} 45... Kf6
{[%clk 0:00:50.2]} 46. Red5 {[%clk 0:01:26.2]} 46... Rh7+ {[%clk 0:00:51.1]} 47.
Kg1 {[%clk 0:01:27]} 47... Ra7 {[%clk 0:00:52.7]} 1-0

[Event "*** Titled Tuesday 3|2 Blitz"]
[Site "Chess.com"]
[Date "2017.03.07"]
[Round "2"]
[White "EmeseBalogh"]
[Black "Quiet_Desperation"]
[Result "0-1"]
[WhiteElo "1996"]
[BlackElo "2142"]
[TimeControl "180+2"]
[EndTime "13:21:03 PST"]
[Termination "Quiet_Desperation won by resignation"]

1. e4 {[%clk 0:02:49]} 1... Nc6 {[%clk 0:02:59.2]} 2. d4 {[%clk 0:02:27.1]} 2...
d5 {[%clk 0:02:54.9]} 3. exd5 {[%clk 0:02:25.9]} 3... Qxd5 {[%clk 0:02:55.7]} 4.
c3 {[%clk 0:02:26.6]} 4... e5 {[%clk 0:02:56.6]} 5. Nf3 {[%clk 0:02:26.4]} 5...
Bg4 {[%clk 0:02:56.6]} 6. Be2 {[%clk 0:02:27]} 6... O-O-O {[%clk 0:02:54.2]} 7.
dxe5 {[%clk 0:02:23.6]} 7... Bxf3 {[%clk 0:02:46.6]} 8. Bxf3 {[%clk 0:02:17.6]}
8... Qxd1+ {[%clk 0:02:39.2]} 9. Bxd1 {[%clk 0:02:18.1]} 9... Nxe5 {[%clk
0:02:41]} 10. O-O {[%clk 0:02:17.9]} 10... Nd3 {[%clk 0:02:38.5]} 11. Bb3 {[%clk
0:02:05.6]} 11... Nxc1 {[%clk 0:02:34.3]} 12. Rxc1 {[%clk 0:02:05.8]} 12... Nh6
{[%clk 0:02:35.8]} 13. Na3 {[%clk 0:02:04.2]} 13... Bxa3 {[%clk 0:02:35.9]} 14.
bxa3 {[%clk 0:02:06.1]} 14... Rd6 {[%clk 0:02:30.5]} 15. h3 {[%clk 0:02:01.3]}
15... Re8 {[%clk 0:02:30.1]} 16. Re1 {[%clk 0:01:58.8]} 16... Kd8 {[%clk
0:02:26.5]} 17. Rxe8+ {[%clk 0:01:58.9]} 17... Kxe8 {[%clk 0:02:27.8]} 18. Re1+
{[%clk 0:02:00.5]} 18... Kd7 {[%clk 0:02:28.8]} 19. g3 {[%clk 0:01:54.5]} 19...
f6 {[%clk 0:02:20.1]} 20. Kg2 {[%clk 0:01:55.3]} 20... Nf5 {[%clk 0:02:07.5]}
21. Re4 {[%clk 0:01:40]} 21... Ne7 {[%clk 0:02:04.5]} 22. Rb4 {[%clk 0:01:39.5]}
22... b6 {[%clk 0:01:56.9]} 23. Re4 {[%clk 0:01:38.3]} 23... Nd5 {[%clk
0:01:39.5]} 24. c4 {[%clk 0:01:36.8]} 24... Ne7 {[%clk 0:01:36.1]} 25. Re2
{[%clk 0:01:37.4]} 25... c5 {[%clk 0:01:36]} 26. Ba4+ {[%clk 0:01:37.8]} 26...
Kd8 {[%clk 0:01:28.5]} 27. Bb5 {[%clk 0:01:29.8]} 27... Nc6 {[%clk 0:01:17.1]}
28. a4 {[%clk 0:01:26.8]} 28... Ne5 {[%clk 0:01:04.9]} 29. f4 {[%clk 0:01:23.4]}
29... Nc6 {[%clk 0:01:05.7]} 30. h4 {[%clk 0:01:12.5]} 30... Kc7 {[%clk
0:00:59.3]} 31. Kh3 {[%clk 0:01:10]} 31... Kd7 {[%clk 0:00:50]} 32. Kg4 {[%clk
0:01:09.5]} 32... g6 {[%clk 0:00:50.2]} 33. h5 {[%clk 0:01:10.1]} 33... Kc7
{[%clk 0:00:44.8]} 34. hxg6 {[%clk 0:01:10.8]} 34... hxg6 {[%clk 0:00:46.1]} 35.
Rh2 {[%clk 0:01:11.7]} 35... Rd7 {[%clk 0:00:43.7]} 36. Rh6 {[%clk 0:01:12.7]}
36... Rg7 {[%clk 0:00:44.8]} 37. Rh8 {[%clk 0:01:08]} 37... Nd4 {[%clk
0:00:41.7]} 38. Rf8 {[%clk 0:01:00.9]} 38... f5+ {[%clk 0:00:42.1]} 39. Kh4
{[%clk 0:00:56.4]} 39... Rh7+ {[%clk 0:00:40.5]} 40. Kg5 {[%clk 0:00:56.9]}
40... Ne6+ {[%clk 0:00:42]} 41. Kxg6 {[%clk 0:00:57.7]} 41... Nxf8+ {[%clk
0:00:43.6]} 0-1

[Event "*** Titled Tuesday 3|2 Blitz"]
[Site "Chess.com"]
[Date "2017.03.07"]
[Round "2"]
[White "Buffy7"]
[Black "Genghis_K"]
[Result "0-1"]
[WhiteElo "2493"]
[BlackElo "2714"]
[TimeControl "180+2"]
[EndTime "13:21:04 PST"]
[Termination "Genghis_K won by resignation"]

1. c4 {[%clk 0:03:02]} 1... Nf6 {[%clk 0:02:56.8]} 2. d4 {[%clk 0:03:02.2]} 2...
e6 {[%clk 0:02:56.2]} 3. Nf3 {[%clk 0:03:03.5]} 3... d5 {[%clk 0:02:56.7]} 4. g3
{[%clk 0:03:04.5]} 4... Bb4+ {[%clk 0:02:55]} 5. Bd2 {[%clk 0:03:03.9]} 5... Bd6
{[%clk 0:02:55.9]} 6. Bg2 {[%clk 0:03:00.9]} 6... O-O {[%clk 0:02:57.2]} 7. O-O
{[%clk 0:03:02.1]} 7... c6 {[%clk 0:02:54.4]} 8. b3 {[%clk 0:03:02.1]} 8... Nbd7
{[%clk 0:02:53.3]} 9. Nc3 {[%clk 0:02:59.4]} 9... Re8 {[%clk 0:02:46.9]} 10. Qc2
{[%clk 0:02:58.1]} 10... dxc4 {[%clk 0:02:38.2]} 11. bxc4 {[%clk 0:03:00]} 11...
e5 {[%clk 0:02:39.8]} 12. e3 {[%clk 0:03:00.1]} 12... h6 {[%clk 0:02:39.3]} 13.
Rad1 {[%clk 0:02:56.2]} 13... Qe7 {[%clk 0:02:14.7]} 14. Bc1 {[%clk 0:01:57.6]}
14... Bb4 {[%clk 0:01:53.3]} 15. Bb2 {[%clk 0:01:52.2]} 15... e4 {[%clk
0:01:19.8]} 16. Nd2 {[%clk 0:01:15.5]} 16... Bxc3 {[%clk 0:01:18.5]} 17. Qxc3
{[%clk 0:01:17.4]} 17... b5 {[%clk 0:01:20]} 18. d5 {[%clk 0:01:12.8]} 18... b4
{[%clk 0:01:18.6]} 19. Qc2 {[%clk 0:01:01.5]} 19... cxd5 {[%clk 0:01:07.4]} 20.
cxd5 {[%clk 0:01:01.9]} 20... a5 {[%clk 0:01:08.6]} 21. Rfe1 {[%clk 0:00:35.7]}
21... Ra6 {[%clk 0:00:55.8]} 22. Nc4 {[%clk 0:00:32.1]} 22... Bb7 {[%clk
0:00:54.3]} 23. d6 {[%clk 0:00:32.1]} 23... Qe6 {[%clk 0:00:55.6]} 24. Rd4
{[%clk 0:00:30.5]} 24... Rc6 {[%clk 0:00:52.4]} 25. Bf1 {[%clk 0:00:28.6]} 25...
Ne5 {[%clk 0:00:49.4]} 26. Qb3 {[%clk 0:00:27.5]} 26... Nf3+ {[%clk 0:00:48]}
27. Kh1 {[%clk 0:00:28.5]} 27... Nxe1 {[%clk 0:00:39.8]} 28. Nxa5 {[%clk
0:00:29.6]} 28... Qxb3 {[%clk 0:00:35.2]} 29. axb3 {[%clk 0:00:31.5]} 29... Rc2
{[%clk 0:00:36.6]} 30. d7 {[%clk 0:00:27.3]} 30... Nxd7 {[%clk 0:00:37]} 31.
Rxd7 {[%clk 0:00:29.2]} 31... Rxf2 {[%clk 0:00:38.5]} 32. Kg1 {[%clk 0:00:29.5]}
32... Rxb2 {[%clk 0:00:38]} 0-1

[Event "*** Titled Tuesday 3|2 Blitz"]
[Site "Chess.com"]
[Date "2017.03.07"]
[Round "2"]
[White "asms9699"]
[Black "GMHess"]
[Result "0-1"]
[WhiteElo "2428"]
[BlackElo "2571"]
[TimeControl "180+2"]
[EndTime "13:21:04 PST"]
[Termination "GMHess won by resignation"]

1. c4 {[%clk 0:03:02]} 1... g6 {[%clk 0:02:54.4]} 2. g3 {[%clk 0:03:02.4]} 2...
Bg7 {[%clk 0:02:55.2]} 3. Bg2 {[%clk 0:03:02.4]} 3... h5 {[%clk 0:02:56.4]} 4.
Nf3 {[%clk 0:03:00.3]} 4... e5 {[%clk 0:02:56.4]} 5. Nc3 {[%clk 0:02:59.8]} 5...
Nc6 {[%clk 0:02:53.8]} 6. d3 {[%clk 0:03:00.4]} 6... Nge7 {[%clk 0:02:53.4]} 7.
O-O {[%clk 0:02:59]} 7... Nf5 {[%clk 0:02:54.8]} 8. Nd5 {[%clk 0:02:51.4]} 8...
h4 {[%clk 0:02:50.7]} 9. g4 {[%clk 0:02:27.8]} 9... h3 {[%clk 0:02:44]} 10. gxf5
{[%clk 0:02:27.8]} 10... hxg2 {[%clk 0:02:43.1]} 11. Kxg2 {[%clk 0:02:29.7]}
11... gxf5 {[%clk 0:02:13.9]} 12. Rg1 {[%clk 0:02:17.9]} 12... e4 {[%clk
0:01:25]} 13. Ng5 {[%clk 0:01:57.8]} 13... d6 {[%clk 0:00:38.4]} 14. Bf4 {[%clk
0:01:30.9]} 14... Bxb2 {[%clk 0:00:25]} 15. Qd2 {[%clk 0:01:03.2]} 15... Bxa1
{[%clk 0:00:17.3]} 16. Rxa1 {[%clk 0:01:03.3]} 16... f6 {[%clk 0:00:18.2]} 17.
Nh3 {[%clk 0:00:42.8]} 17... Be6 {[%clk 0:00:19.4]} 18. Bg3 {[%clk 0:00:38.2]}
18... Rxh3 {[%clk 0:00:20.4]} 19. Nf4 {[%clk 0:00:23.3]} 19... Rxg3+ {[%clk
0:00:21.6]} 20. hxg3 {[%clk 0:00:24.5]} 20... Qd7 {[%clk 0:00:20.7]} 21. Qb2
{[%clk 0:00:22.9]} 21... O-O-O {[%clk 0:00:20.7]} 22. Qxf6 {[%clk 0:00:23.5]}
22... Bg8 {[%clk 0:00:19.8]} 23. Rh1 {[%clk 0:00:23.2]} 23... exd3 {[%clk
0:00:20.4]} 24. exd3 {[%clk 0:00:24.2]} 24... d5 {[%clk 0:00:19.9]} 25. Rh8
{[%clk 0:00:19.4]} 25... dxc4 {[%clk 0:00:20.1]} 26. dxc4 {[%clk 0:00:21.3]}
26... Bxc4 {[%clk 0:00:20.5]} 27. Rxd8+ {[%clk 0:00:22.3]} 27... Nxd8 {[%clk
0:00:21.8]} 28. a3 {[%clk 0:00:21.5]} 28... Qc6+ {[%clk 0:00:23.2]} 29. Kh2
{[%clk 0:00:22.2]} 29... Qxf6 {[%clk 0:00:24]} 0-1

[Event "*** Titled Tuesday 3|2 Blitz"]
[Site "Chess.com"]
[Date "2017.03.07"]
[Round "2"]
[White "bilelou"]
[Black "Jadro9"]
[Result "0-1"]
[WhiteElo "2328"]
[BlackElo "2389"]
[TimeControl "180+2"]
[EndTime "13:21:08 PST"]
[Termination "Jadro9 won by resignation"]

1. e4 {[%clk 0:03:02]} 1... e5 {[%clk 0:03:00.4]} 2. Qh5 {[%clk 0:03:01.1]} 2...
Nc6 {[%clk 0:02:58.7]} 3. Bc4 {[%clk 0:03:01.7]} 3... g6 {[%clk 0:02:59.9]} 4.
Qf3 {[%clk 0:03:02.6]} 4... Nf6 {[%clk 0:03:01.2]} 5. Ne2 {[%clk 0:03:02.2]}
5... Bg7 {[%clk 0:03:02.4]} 6. d3 {[%clk 0:02:59.7]} 6... O-O {[%clk 0:03:02.7]}
7. Nbc3 {[%clk 0:02:57.6]} 7... h6 {[%clk 0:03:02.9]} 8. Bd2 {[%clk 0:02:56.9]}
8... d6 {[%clk 0:03:04.2]} 9. h3 {[%clk 0:02:57.2]} 9... Be6 {[%clk 0:02:47.3]}
10. Nd5 {[%clk 0:02:56.6]} 10... Bxd5 {[%clk 0:02:35.3]} 11. Bxd5 {[%clk
0:02:57]} 11... Nxd5 {[%clk 0:02:33.9]} 12. exd5 {[%clk 0:02:58.1]} 12... Ne7
{[%clk 0:02:35.2]} 13. g4 {[%clk 0:02:58.6]} 13... f5 {[%clk 0:02:33.2]} 14.
O-O-O {[%clk 0:02:54.6]} 14... Qe8 {[%clk 0:02:23.9]} 15. Rhg1 {[%clk
0:02:52.9]} 15... Qf7 {[%clk 0:02:23.8]} 16. Nc3 {[%clk 0:02:51.3]} 16... a6
{[%clk 0:02:23]} 17. h4 {[%clk 0:02:42.6]} 17... f4 {[%clk 0:02:24.1]} 18. h5
{[%clk 0:02:37.4]} 18... g5 {[%clk 0:02:25.1]} 19. Qe4 {[%clk 0:02:37.6]} 19...
b5 {[%clk 0:02:25.2]} 20. b4 {[%clk 0:02:38.8]} 20... Rfb8 {[%clk 0:02:19.9]}
21. a3 {[%clk 0:02:35.8]} 21... a5 {[%clk 0:02:19.9]} 22. Kb2 {[%clk 0:01:52.5]}
22... axb4 {[%clk 0:02:03.9]} 23. axb4 {[%clk 0:01:50.7]} 23... c6 {[%clk
0:02:05.1]} 24. Ra1 {[%clk 0:01:24.1]} 24... cxd5 {[%clk 0:01:54.3]} 25. Qh1
{[%clk 0:01:24.5]} 25... e4 {[%clk 0:01:49.6]} 26. dxe4 {[%clk 0:01:08]} 26...
Rxa1 {[%clk 0:01:46.6]} 27. Rxa1 {[%clk 0:01:08.1]} 27... Rc8 {[%clk 0:01:48]}
28. Ra7 {[%clk 0:00:44.4]} 28... Qe6 {[%clk 0:01:40.6]} 29. Qf3 {[%clk 0:00:45]}
29... dxe4 {[%clk 0:01:40.3]} 30. Qe2 {[%clk 0:00:38.2]} 30... Rc4 {[%clk
0:01:27.2]} 31. Ra8+ {[%clk 0:00:20.2]} 31... Kf7 {[%clk 0:01:23.1]} 32. Ra7
{[%clk 0:00:21.1]} 32... Bd4 {[%clk 0:01:17.3]} 33. Qe1 {[%clk 0:00:20]} 33...
Bxa7 {[%clk 0:01:16.2]} 0-1

[Event "*** Titled Tuesday 3|2 Blitz"]
[Site "Chess.com"]
[Date "2017.03.07"]
[Round "2"]
[White "GrigorGrigorov"]
[Black "Astaneh"]
[Result "1-0"]
[WhiteElo "2564"]
[BlackElo "2521"]
[TimeControl "180+2"]
[EndTime "13:21:12 PST"]
[Termination "GrigorGrigorov won by resignation"]

1. e4 {[%clk 0:03:02]} 1... c6 {[%clk 0:02:56]} 2. d4 {[%clk 0:03:02.4]} 2... d5
{[%clk 0:02:56.7]} 3. exd5 {[%clk 0:03:03.6]} 3... cxd5 {[%clk 0:02:57.8]} 4.
Bd3 {[%clk 0:03:04]} 4... Nf6 {[%clk 0:02:55.1]} 5. c3 {[%clk 0:03:04.4]} 5...
Nc6 {[%clk 0:02:51.7]} 6. Bf4 {[%clk 0:03:04.5]} 6... Bg4 {[%clk 0:02:52]} 7.
Qb3 {[%clk 0:03:04.7]} 7... Qc8 {[%clk 0:02:48.9]} 8. Nd2 {[%clk 0:03:05.2]}
8... e6 {[%clk 0:02:44.8]} 9. Ngf3 {[%clk 0:03:06.1]} 9... Be7 {[%clk 0:02:44]}
10. O-O {[%clk 0:03:05.6]} 10... O-O {[%clk 0:02:44.3]} 11. Ne5 {[%clk
0:02:59.1]} 11... Bh5 {[%clk 0:02:43.2]} 12. Rae1 {[%clk 0:02:57.3]} 12... Nxe5
{[%clk 0:02:42.1]} 13. Bxe5 {[%clk 0:02:58]} 13... Bg6 {[%clk 0:02:41.8]} 14.
Bxg6 {[%clk 0:02:58.8]} 14... hxg6 {[%clk 0:02:43.1]} 15. Qd1 {[%clk 0:03:00]}
15... b5 {[%clk 0:02:38.4]} 16. h4 {[%clk 0:02:58.2]} 16... a5 {[%clk
0:02:30.3]} 17. Re3 {[%clk 0:02:58.4]} 17... b4 {[%clk 0:02:30.2]} 18. Rh3
{[%clk 0:02:56.8]} 18... bxc3 {[%clk 0:02:26.4]} 19. bxc3 {[%clk 0:02:56.9]}
19... Ra6 {[%clk 0:02:18.2]} 20. h5 {[%clk 0:02:51.1]} 20... Rc6 {[%clk
0:01:38.1]} 21. Qf3 {[%clk 0:02:40.8]} 21... g5 {[%clk 0:01:26.8]} 22. h6 {[%clk
0:01:47]} 22... g4 {[%clk 0:01:13.6]} 23. Qg3 {[%clk 0:01:45.7]} 23... Re8
{[%clk 0:00:25.8]} 24. Rh2 {[%clk 0:00:42.8]} 24... Rxc3 {[%clk 0:00:20.6]} 25.
Qf4 {[%clk 0:00:43.8]} 25... Nh7 {[%clk 0:00:13.3]} 26. hxg7 {[%clk 0:00:42.9]}
26... f6 {[%clk 0:00:12.2]} 27. Qh6 {[%clk 0:00:41]} 27... Ng5 {[%clk
0:00:13.8]} 28. Bxf6 {[%clk 0:00:33.2]} 28... Bxf6 {[%clk 0:00:14.6]} 29. Qxf6
{[%clk 0:00:34.3]} 29... Nf7 {[%clk 0:00:15.3]} 30. Rh8+ {[%clk 0:00:34.6]} 1-0

[Event "*** Titled Tuesday 3|2 Blitz"]
[Site "Chess.com"]
[Date "2017.03.07"]
[Round "2"]
[White "Hunninn"]
[Black "IMcoach"]
[Result "1-0"]
[WhiteElo "2420"]
[BlackElo "2318"]
[TimeControl "180+2"]
[EndTime "13:21:12 PST"]
[Termination "Hunninn won on time"]

1. d4 {[%clk 0:03:02]} 1... Nf6 {[%clk 0:03:00.1]} 2. Bf4 {[%clk 0:03:02.8]}
2... c5 {[%clk 0:02:54.4]} 3. e3 {[%clk 0:03:02.2]} 3... d6 {[%clk 0:02:48.4]}
4. c3 {[%clk 0:02:57.2]} 4... Nbd7 {[%clk 0:02:47.5]} 5. Bd3 {[%clk 0:02:57.5]}
5... g6 {[%clk 0:02:48.2]} 6. Nf3 {[%clk 0:02:57.7]} 6... Bg7 {[%clk 0:02:49.6]}
7. Nbd2 {[%clk 0:02:56.7]} 7... O-O {[%clk 0:02:50.1]} 8. Qc2 {[%clk 0:02:52.9]}
8... b6 {[%clk 0:02:48.7]} 9. h4 {[%clk 0:02:53.4]} 9... cxd4 {[%clk 0:02:42.4]}
10. exd4 {[%clk 0:02:53.3]} 10... e5 {[%clk 0:02:37.4]} 11. dxe5 {[%clk
0:02:52.1]} 11... dxe5 {[%clk 0:02:37.3]} 12. Bg5 {[%clk 0:02:46.1]} 12... h6
{[%clk 0:02:21.3]} 13. Bxf6 {[%clk 0:02:31.2]} 13... Qxf6 {[%clk 0:02:13.4]} 14.
O-O-O {[%clk 0:02:28]} 14... Nc5 {[%clk 0:02:08.9]} 15. Ne4 {[%clk 0:02:23.5]}
15... Qf4+ {[%clk 0:02:00.2]} 16. Nfd2 {[%clk 0:02:07.7]} 16... Nxd3+ {[%clk
0:01:31.9]} 17. Qxd3 {[%clk 0:02:07.6]} 17... Qf5 {[%clk 0:01:12.8]} 18. Nc4
{[%clk 0:02:02.1]} 18... Ba6 {[%clk 0:01:11.6]} 19. Ned6 {[%clk 0:01:51.2]}
19... Qe6 {[%clk 0:01:09.4]} 20. Qd5 {[%clk 0:01:49.8]} 20... Qe7 {[%clk
0:00:40.5]} 21. Rhe1 {[%clk 0:01:44.2]} 21... Rad8 {[%clk 0:00:32.5]} 22. Nxe5
{[%clk 0:01:42.7]} 22... Qxh4 {[%clk 0:00:24.4]} 23. g3 {[%clk 0:01:42.4]} 23...
Qf6 {[%clk 0:00:24.4]} 24. f4 {[%clk 0:01:31.4]} 24... Bc8 {[%clk 0:00:25.4]}
25. Nc6 {[%clk 0:01:20.5]} 25... Bg4 {[%clk 0:00:22]} 26. Nxd8 {[%clk
0:01:20.4]} 26... Bxd1 {[%clk 0:00:21.9]} 27. N8xf7 {[%clk 0:01:19.1]} 27... Bh5
{[%clk 0:00:15.8]} 28. Nxh6+ {[%clk 0:01:12.1]} 28... Kh7 {[%clk 0:00:16.8]} 29.
Nhf7 {[%clk 0:01:12.7]} 29... b5 {[%clk 0:00:08.2]} 30. Ng5+ {[%clk 0:01:13]}
30... Kh6 {[%clk 0:00:08.2]} 31. Ndf7+ {[%clk 0:01:12.5]} 31... Rxf7 {[%clk
0:00:08.5]} 32. Nxf7+ {[%clk 0:01:13.4]} 32... Kh7 {[%clk 0:00:09.7]} 33. Ng5+
{[%clk 0:01:14.3]} 33... Kh6 {[%clk 0:00:11.2]} 34. Qg8 {[%clk 0:01:14.8]} 1-0

[Event "*** Titled Tuesday 3|2 Blitz"]
[Site "Chess.com"]
[Date "2017.03.07"]
[Round "2"]
[White "afgano29"]
[Black "pedromartinez91"]
[Result "0-1"]
[WhiteElo "2403"]
[BlackElo "2361"]
[TimeControl "180+2"]
[EndTime "13:21:19 PST"]
[Termination "pedromartinez91 won by resignation"]

1. d4 {[%clk 0:03:02]} 1... d5 {[%clk 0:02:57.6]} 2. c4 {[%clk 0:03:02.2]} 2...
e6 {[%clk 0:02:58.4]} 3. Nc3 {[%clk 0:03:02.5]} 3... Be7 {[%clk 0:02:59.4]} 4.
cxd5 {[%clk 0:03:02.7]} 4... exd5 {[%clk 0:02:59.5]} 5. Bf4 {[%clk 0:03:03.7]}
5... c6 {[%clk 0:02:57.6]} 6. e3 {[%clk 0:03:04.2]} 6... Bf5 {[%clk 0:02:52.2]}
7. g4 {[%clk 0:03:04.4]} 7... Be6 {[%clk 0:02:51.9]} 8. h4 {[%clk 0:03:04.1]}
8... Nf6 {[%clk 0:02:42.5]} 9. f3 {[%clk 0:03:00.7]} 9... Bd6 {[%clk 0:02:33.1]}
10. Nge2 {[%clk 0:02:58]} 10... Qe7 {[%clk 0:02:25.6]} 11. Bxd6 {[%clk
0:02:35.2]} 11... Qxd6 {[%clk 0:02:26]} 12. Nf4 {[%clk 0:02:23.9]} 12... Nbd7
{[%clk 0:02:25.7]} 13. h5 {[%clk 0:02:22.9]} 13... h6 {[%clk 0:02:24.2]} 14. Kf2
{[%clk 0:02:16]} 14... Nh7 {[%clk 0:02:17.4]} 15. Be2 {[%clk 0:02:10.8]} 15...
Ng5 {[%clk 0:02:17.8]} 16. Qg1 {[%clk 0:01:31.7]} 16... Nf6 {[%clk 0:02:10.3]}
17. Rc1 {[%clk 0:01:29.4]} 17... Rd8 {[%clk 0:01:49.3]} 18. Nd3 {[%clk
0:01:27.2]} 18... Bc8 {[%clk 0:01:42.2]} 19. Qh2 {[%clk 0:01:17.4]} 19... Qe7
{[%clk 0:01:31.9]} 20. Qe5 {[%clk 0:01:14.1]} 20... Ne6 {[%clk 0:01:28.7]} 21.
Rcg1 {[%clk 0:01:01.3]} 21... Nd7 {[%clk 0:01:28.7]} 22. Qg3 {[%clk 0:00:58.7]}
22... O-O {[%clk 0:01:26.1]} 23. f4 {[%clk 0:00:59.3]} 23... f6 {[%clk
0:01:25.6]} 24. Ne1 {[%clk 0:00:54.4]} 24... Rfe8 {[%clk 0:01:24.4]} 25. Bd3
{[%clk 0:00:52.4]} 25... Ndf8 {[%clk 0:01:21.9]} 26. Ng2 {[%clk 0:00:50]} 26...
Qb4 {[%clk 0:01:21.4]} 27. Rb1 {[%clk 0:00:48.7]} 27... c5 {[%clk 0:01:14.1]}
28. dxc5 {[%clk 0:00:27.8]} 28... d4 {[%clk 0:01:08.1]} 29. Ne2 {[%clk
0:00:13.1]} 29... dxe3+ {[%clk 0:01:02.8]} 30. Qxe3 {[%clk 0:00:11.8]} 30...
Nxc5 {[%clk 0:01:02.4]} 31. a3 {[%clk 0:00:12]} 31... Nxd3+ {[%clk 0:00:56.8]}
32. Qxd3 {[%clk 0:00:12]} 32... Qb6+ {[%clk 0:00:56.1]} 0-1

[Event "*** Titled Tuesday 3|2 Blitz"]
[Site "Chess.com"]
[Date "2017.03.07"]
[Round "2"]
[White "promen1999"]
[Black "GMMelik"]
[Result "0-1"]
[WhiteElo "2273"]
[BlackElo "2413"]
[TimeControl "180+2"]
[EndTime "13:21:25 PST"]
[Termination "GMMelik won on time"]

1. g3 {[%clk 0:02:59.2]} 1... Nf6 {[%clk 0:02:58.5]} 2. Bg2 {[%clk 0:03:00.3]}
2... g6 {[%clk 0:03:00.4]} 3. e4 {[%clk 0:02:59.7]} 3... Bg7 {[%clk 0:03:02.3]}
4. Nc3 {[%clk 0:02:59.6]} 4... d6 {[%clk 0:03:02.2]} 5. Nge2 {[%clk 0:03:00.6]}
5... c5 {[%clk 0:03:03]} 6. O-O {[%clk 0:03:01.1]} 6... Nc6 {[%clk 0:03:03.8]}
7. d3 {[%clk 0:03:00.6]} 7... O-O {[%clk 0:03:04.4]} 8. h3 {[%clk 0:02:59.5]}
8... Rb8 {[%clk 0:03:05.7]} 9. a4 {[%clk 0:02:59.3]} 9... a6 {[%clk 0:03:05.8]}
10. f4 {[%clk 0:02:57]} 10... Ne8 {[%clk 0:03:00.8]} 11. f5 {[%clk 0:02:53.7]}
11... b5 {[%clk 0:02:55.4]} 12. axb5 {[%clk 0:02:53.2]} 12... axb5 {[%clk
0:02:57.3]} 13. Bg5 {[%clk 0:02:48]} 13... b4 {[%clk 0:02:55.3]} 14. Nd5 {[%clk
0:02:47.4]} 14... Bxb2 {[%clk 0:02:40.9]} 15. Ra2 {[%clk 0:01:58.8]} 15... Bg7
{[%clk 0:02:35.4]} 16. Ra7 {[%clk 0:01:45.1]} 16... f6 {[%clk 0:02:24]} 17. fxg6
{[%clk 0:01:38.7]} 17... fxg5 {[%clk 0:02:21.7]} 18. gxh7+ {[%clk 0:01:33.3]}
18... Kxh7 {[%clk 0:02:17]} 19. Rxf8 {[%clk 0:00:55.9]} 19... Bxf8 {[%clk
0:02:16.8]} 20. Nd4 {[%clk 0:00:55.9]} 20... cxd4 {[%clk 0:01:50.4]} 21. Qh5+
{[%clk 0:00:43]} 21... Kg8 {[%clk 0:01:50.6]} 22. e5 {[%clk 0:00:43.9]} 22...
Nxa7 {[%clk 0:01:41.1]} 23. Qg6+ {[%clk 0:00:43.8]} 23... Bg7 {[%clk 0:01:38.4]}
24. e6 {[%clk 0:00:34.7]} 24... Bxe6 {[%clk 0:01:35.6]} 25. Qxe6+ {[%clk
0:00:33.8]} 25... Kh8 {[%clk 0:01:32.9]} 26. Qg6 {[%clk 0:00:20.6]} 26... Qd7
{[%clk 0:01:05.3]} 27. Be4 {[%clk 0:00:20.1]} 27... Qxh3 {[%clk 0:01:04.3]} 28.
Nxe7 {[%clk 0:00:09.7]} 28... Nf6 {[%clk 0:00:55.5]} 29. Nf5 {[%clk 0:00:09.6]}
29... Qh7 {[%clk 0:00:43.7]} 30. Qf7 {[%clk 0:00:04]} 30... Nxe4 {[%clk
0:00:43.1]} 0-1